bitfinex/quotes_SOLUSD_20260311
["timestamp","ask_amount","ask_price","bid_price","bid_amount"]
[1773244946868,3.43607311,85.689,85.652,40.86302712]
[1773244947064,7.64662501,85.68,85.652,11.6751506]
[1773244947257,3.43607311,85.689,85.652,11.6751506]
[1773244947840,3.43607311,85.689,85.64,7.64662501]
[1773244947841,7.64662501,85.68,85.64,7.64662501]
[1773244948165,3.43607311,85.679,85.641,11.6766502]
[1773244948369,11.08269812,85.7,85.66,7.64662501]
[1773244948666,3.43607311,85.699,85.67,7.64662501]
[1773244948866,11.66769453,85.707,85.67,7.64662501]
[1773244949064,3.43607311,85.706,85.67,7.64662501]
[1773244949264,3.43607311,85.699,85.66,7.64662501]
[1773244949658,3.43607311,85.689,85.66,7.64662501]
[1773244949970,3.43607311,85.679,85.641,40.8682757]
[1773244950353,3.43607311,85.669,85.641,11.6766502]
[1773244950753,3.43607311,85.68,85.65,7.64662501]
[1773244951075,3.43607311,85.678,85.641,11.6766502]
[1773244951248,7.64662501,85.67,85.641,11.6766502]
[1773244951651,3.43607311,85.659,85.62,7.64662501]
[1773244951952,7.64662501,85.66,85.62,7.64662501]
[1773244952357,19.32079526,85.66,85.621,40.87782202]
[1773244952671,3.43607311,85.661,85.63,7.64662501]
[1773244952967,3.43607311,85.659,85.621,40.87782202]
[1773244953172,11.67406023,85.66,85.63,7.64662501]
[1773244953374,3.43607311,85.678,85.64,7.64662501]
[1773244954379,3.43607311,85.676,85.641,11.6766502]
[1773244954869,3.43607311,85.669,85.641,11.6766502]
[1773244955379,3.43607311,85.669,85.632,11.67787742]
[1773244955877,40.85110355,85.677,85.63,7.64662501]
[1773244955878,7.64662501,85.66,85.63,7.64662501]
[1773244956076,3.43607311,85.639,85.598,11.68251594]
[1773244956273,3.43607311,85.639,85.6,7.64662501]
[1773244956579,3.43607311,85.637,85.601,11.68210651]
[1773244956971,3.18,85.664,85.601,11.68210651]
[1773244956972,3.43607311,85.659,85.62,7.64662501]
[1773244957378,3.43607311,85.659,85.63,7.64662501]
[1773244957758,3.43607311,85.669,85.64,7.64662501]
[1773244958584,15.10890692,85.669,85.641,11.6766502]
[1773244958879,3.43607311,85.669,85.641,40.8682757]
[1773244959080,3.43607311,85.677,85.641,40.8682757]
[1773244959585,11.67085794,85.684,85.65,7.64662501]
[1773244959757,3.43607311,85.69,85.66,7.64662501]
[1773244959957,11.67010934,85.689,85.65,7.64662501]
[1773244960160,3.43607311,85.669,85.637,11.6771522]
[1773244960380,3.43607311,85.659,85.63,7.64662501]
[1773244960878,3.43607311,85.659,85.606,2.92]
[1773244960879,3.43607311,85.657,85.631,11.67791511]
[1773244961264,11.67273173,85.67,85.631,40.87294961]
[1773244961581,3.43607311,85.669,85.64,7.64662501]
[1773244961771,3.43607311,85.669,85.631,40.87294961]
[1773244962173,3.43607311,85.669,85.64,7.64662501]
[1773244962374,3.43607311,85.669,85.631,40.87294961]
[1773244962701,3.43607311,85.657,85.621,11.67937772]
[1773244962994,3.43607311,85.657,85.63,7.64662501]
[1773244963376,3.43607311,85.657,85.621,40.87782202]
[1773244963377,15.10754453,85.679,85.64,7.64662501]
[1773244963573,3.43607311,85.678,85.64,7.64662501]
[1773244964690,11.67174387,85.677,85.641,11.6766502]
[1773244964989,3.43607311,85.676,85.65,7.64662501]
[1773244965972,3.43607311,85.688,85.66,7.64662501]
[1773244966194,3.43607311,85.679,85.641,40.8682757]
[1773244966581,3.43607311,85.679,85.65,7.64662501]
[1773244966780,3.43607311,85.679,85.651,11.67528692]
[1773244966980,3.18,85.711,85.66,7.64662501]
[1773244966981,32.60509663,85.708,85.66,7.64662501]
[1773244967180,32.60509663,85.708,85.651,11.67528692]
[1773244967181,3.43607311,85.708,85.68,7.64662501]
[1773244968398,3.43607311,85.708,85.67,7.64662501]
[1773244968614,3.43607311,85.708,85.68,7.64662501]
[1773244969095,3.43607311,85.706,85.681,11.67119898]
[1773244969498,3.43607311,85.706,85.651,1.16752869]
[1773244969690,3.43607311,85.689,85.652,11.6751506]
[1773244969894,3.43607311,85.689,85.644,11.67620589]
[1773244970097,3.43607311,85.679,85.644,11.67620589]
[1773244970398,3.43607311,85.669,85.63,7.64662501]
[1773244970603,3.43607311,85.659,85.62,7.64662501]
[1773244971296,3.43607311,85.649,85.611,11.68074196]
[1773244971501,3.43607311,85.649,85.62,7.64662501]
[1773244972495,3.43607311,85.649,85.621,11.67937772]
[1773244972700,3.43607311,85.629,85.594,11.68306189]
[1773244973508,3.43607311,85.64,85.61,7.64662501]
[1773244974587,3.43607311,85.64,85.611,11.68074196]
[1773244974588,11.67692289,85.639,85.611,11.68074196]
[1773244974797,3.43607311,85.64,85.611,11.68074196]
[1773244975397,11.67692289,85.639,85.611,11.68074196]
[1773244975987,3.43607311,85.64,85.611,11.68074196]
[1773244976187,3.43607311,85.639,85.611,11.68074196]
[1773244976399,3.43607311,85.629,85.593,18.78818384]
[1773244976600,3.43607311,85.617,85.593,18.78818384]
[1773244976905,3.43607311,85.617,85.594,11.68306189]
[1773244977808,3.43607311,85.617,85.593,18.78818384]
[1773244978183,3.43607311,85.617,85.594,11.68306189]
[1773244978591,3.43607311,85.617,85.593,18.78818384]
[1773244979099,3.43607311,85.615,85.593,18.78818384]
[1773244980202,11.68033265,85.614,85.593,18.78818384]
[1773244980410,3.43607311,85.615,85.593,30.47126558]
[1773244980991,11.68033265,85.614,85.593,30.47126558]
[1773244981189,15.11640576,85.614,85.593,18.78818384]
[1773244981814,3.43607311,85.629,85.593,30.4712742]
[1773244982114,3.43607311,85.628,85.593,30.4712742]
[1773244982312,3.43607311,85.619,85.593,18.78818384]
[1773244982513,3.43607311,85.609,85.593,13.31625848]
[1773244982805,3.43607311,85.609,85.593,6.29147618]
[1773244983012,3.43607311,85.609,85.593,3.5598121]
[1773244983211,3.16,85.623,85.593,3.42482455]
[1773244983400,7.64662501,85.62,85.593,3.42482455]
[1773244983594,7.64662501,85.61,85.593,3.42482455]
[1773244983795,7.64662501,85.62,85.593,3.42482455]
[1773244984500,11.67965054,85.619,85.593,3.42482455]
[1773244984695,7.64662501,85.63,85.595,3.40592573]
[1773244985414,7.64662501,85.62,85.595,3.40592573]
[1773244985614,8.90313719,85.63,85.595,3.40592573]
[1773244986196,8.90313719,85.63,85.594,11.68306189]
[1773244986197,1.2600366,85.599,85.593,1e-08]
[1773244986394,1.2600366,85.599,85.553,1.16886608]
[1773244986395,7.64310059,85.6,85.561,3.40592573]
[1773244986608,8.90213338,85.61,85.571,3.40592573]
[1773244986911,7.64310059,85.63,85.6,7.64310059]
[1773244987128,11.67764434,85.634,85.601,2.02246374]
[1773244987712,11.67710615,85.638,85.61,7.64310059]
[1773244988107,11.67710615,85.638,85.6,7.64310059]
[1773244988315,14.31860866,85.638,85.6,7.64310059]
[1773244988717,10.33740516,85.649,85.61,7.64310059]
[1773244989016,11.67583219,85.647,85.611,3.40592573]
[1773244989320,7.64310059,85.64,85.611,3.40592573]
[1773244989627,11.67583219,85.647,85.611,3.40592573]
[1773244989802,7.17740516,85.649,85.621,3.40592573]
[1773244990317,7.17740516,85.649,85.62,7.64310059]
[1773244990318,7.17740516,85.649,85.631,3.40592573]
[1773244990819,7.17740516,85.649,85.632,11.67787742]
[1773244991122,7.17740516,85.649,85.619,29.19900662]
[1773244991123,11.67569587,85.648,85.621,3.40592573]
[1773244991296,11.6713352,85.68,85.641,3.40592573]
[1773244991492,11.6698966,85.691,85.66,7.64310059]
[1773244991714,7.64310059,85.69,85.651,3.40592573]
[1773244992101,7.64310059,85.68,85.641,3.40592573]
[1773244992496,2.61702359,85.659,85.62,19.32258903]
[1773244992701,2.61702359,85.659,85.621,3.40592573]
[1773244992896,7.64310059,85.65,85.611,3.40592573]
[1773244993213,7.64310059,85.65,85.612,3.40592573]
[1773244993603,14.2913564,85.658,85.621,3.40592573]
[1773244993806,7.64310059,85.65,85.621,3.40592573]
[1773244993999,2.61300936,85.668,85.621,3.40592573]
[1773244994204,3.16,85.68,85.621,3.40592573]
[1773244994205,7.64310059,85.65,85.621,3.40592573]
[1773244994419,2.61300936,85.659,85.621,3.40592573]
[1773244994619,7.64310059,85.65,85.621,3.40592573]
[1773244994810,7.64310059,85.66,85.621,3.40592573]
[1773244995121,7.64310059,85.66,85.62,7.64310059]
[1773244995122,11.67419652,85.659,85.623,3.40592573]
[1773244995821,7.64310059,85.67,85.631,3.40592573]
[1773244996020,3.16,85.673,85.64,7.64310059]
[1773244996325,7.64310059,85.67,85.64,7.64310059]
[1773244996700,11.67283381,85.669,85.64,7.64310059]
[1773244996901,14.27407499,85.669,85.632,11.67787742]
[1773244997220,43.45615952,85.669,85.632,11.67787742]
[1773244997416,11.67283381,85.669,85.633,3.40592573]
[1773244997915,11.67283381,85.669,85.632,11.67787742]
[1773244997916,11.67283381,85.669,85.632,40.87257099]
[1773244998116,7.64310059,85.67,85.633,3.40592573]
[1773244998327,2.59361929,85.688,85.651,3.40592573]
[1773244998500,7.64310059,85.68,85.651,3.40592573]
[1773244999205,2.58987388,85.678,85.64,11.04902632]
[1773244999407,2.58987388,85.649,85.61,11.04902632]
[1773244999604,7.64310059,85.64,85.611,11.68074196]
[1773244999818,7.64310059,85.64,85.61,3.40592573]
[1773245000012,7.64310059,85.63,85.6,3.34696586]
[1773245000418,7.64310059,85.62,85.59,3.34696586]
[1773245001004,7.64310059,85.63,85.591,3.34696586]
[1773245001311,11.67828656,85.629,85.593,3.34696586]
[1773245002420,7.64310059,85.62,85.593,3.34696586]
[1773245003524,11.67965054,85.619,85.593,3.34696586]
[1773245003704,7.64310059,85.6,85.57,11.68633867]
[1773245004403,7.64310059,85.6,85.57,15.03330453]
[1773245005010,7.64310059,85.6,85.571,3.34696586]
[1773245005215,7.64310059,85.61,85.571,3.34696586]
[1773245005417,43.44361016,85.619,85.581,3.34696586]
[1773245005418,14.2444838,85.619,85.581,3.34696586]
[1773245005613,14.2444838,85.619,85.583,3.34696586]
[1773245006209,11.67965054,85.619,85.583,3.34696586]
[1773245007608,11.67965054,85.619,85.58,7.64310059]
[1773245007609,11.67850435,85.628,85.591,3.34696586]
[1773245007927,7.64310059,85.62,85.591,3.34696586]
[1773245008222,7.64310059,85.61,85.579,11.68502217]
[1773245008413,7.64310059,85.62,85.581,3.34696586]
[1773245008820,11.67705924,85.638,85.591,3.34696586]
[1773245009025,7.64310059,85.63,85.591,3.34696586]
[1773245009535,7.64310059,85.63,85.601,3.34696586]
[1773245009734,11.67828656,85.629,85.602,11.68197004]
[1773245010424,11.67828656,85.629,85.602,15.0289359]
[1773245011123,7.64310059,85.63,85.603,3.34696586]
[1773245011320,7.64310059,85.64,85.603,3.34696586]
[1773245011915,7.64310059,85.63,85.605,3.34696586]
[1773245012121,7.64310059,85.64,85.605,3.34696586]
[1773245012323,7.64310059,85.65,85.611,3.34696586]
[1773245013434,7.64310059,85.64,85.611,3.34696586]
[1773245013609,11.67563095,85.649,85.611,3.34696586]
[1773245013809,11.67495187,85.654,85.623,3.34696586]
[1773245014829,11.67460539,85.656,85.623,3.34696586]
[1773245016512,11.67460539,85.656,85.625,3.34696586]
[1773245018532,11.67460539,85.656,85.627,3.34696586]
[1773245019431,40.86111888,85.656,85.627,3.34696586]
[1773245021126,40.86111888,85.656,85.603,2.9]
[1773245021127,2.51466034,85.649,85.605,3.16855336]
[1773245021328,2.51466034,85.639,85.609,11.68095653]
[1773245021510,7.64310059,85.64,85.58,2.9]
[1773245021511,10.15492244,85.63,85.596,3.16855336]
[1773245021711,7.64310059,85.63,85.6,7.64310059]
[1773245022023,2.51182185,85.647,85.601,3.16855336]
[1773245022228,2.51182185,85.647,85.579,2.9]
[1773245022229,7.64310059,85.62,85.593,11.68307533]
[1773245022525,7.64310059,85.62,85.593,14.85162869]
[1773245022932,2.51182185,85.629,85.593,14.85162869]
[1773245023131,11.67771277,85.634,85.601,3.16855336]
[1773245023317,7.64310059,85.63,85.601,3.16855336]
[1773245024929,7.64310059,85.64,85.601,3.16855336]
[1773245025111,11.67596852,85.646,85.611,3.16855336]
[1773245025318,11.67596852,85.646,85.602,3.16855336]
[1773245025319,7.64310059,85.63,85.602,3.16855336]
[1773245025519,2.50079018,85.629,85.597,11.68265242]
[1773245025828,2.50079018,85.629,85.598,3.16855336]
[1773245026542,7.64310059,85.62,85.593,3.16855336]
[1773245026839,2.50079018,85.629,85.593,3.16855336]
[1773245027242,11.67828656,85.629,85.595,3.16855336]
[1773245027416,19.32137609,85.63,85.595,3.16855336]
[1773245027621,19.32137609,85.63,85.601,3.16855336]
[1773245028338,3.18,85.633,85.601,3.16855336]
[1773245029829,3.18,85.633,85.603,3.1146057]
[1773245030031,19.31862198,85.65,85.611,3.1146057]
[1773245030233,7.64310059,85.64,85.611,3.1146057]
[1773245030437,11.67552139,85.65,85.602,14.79657574]
[1773245030438,7.64310059,85.63,85.602,14.79657574]
[1773245030639,7.64310059,85.63,85.602,3.1146057]
[1773245031850,11.67828656,85.629,85.603,11.68183358]
[1773245032148,7.64310059,85.62,85.596,3.1146057]
[1773245032447,11.67828656,85.629,85.596,3.1146057]
[1773245033530,3.18,85.638,85.601,3.1146057]
[1773245033931,11.6771956,85.637,85.603,3.1146057]
[1773245036541,11.6771956,85.637,85.605,3.1146057]
[1773245037042,7.64310059,85.65,85.611,3.1146057]
[1773245037428,7.64310059,85.64,85.611,3.1146057]
[1773245038138,7.64310059,85.65,85.611,3.1146057]
[1773245038326,7.64310059,85.64,85.611,3.1146057]
[1773245038527,11.67705924,85.638,85.604,44.0005456]
[1773245038718,11.67705924,85.638,85.605,3.1146057]
[1773245039731,7.64310059,85.63,85.605,3.1146057]
[1773245039937,2.46367822,85.619,85.572,3.1146057]
[1773245040132,7.64310059,85.59,85.562,3.1146057]
[1773245040345,2.46142531,85.604,85.562,3.1146057]
[1773245040538,7.64310059,85.6,85.562,3.1146057]
[1773245040742,11.68101484,85.609,85.571,3.1146057]
[1773245040930,7.64310059,85.61,85.581,3.1146057]
[1773245041127,7.64310059,85.6,85.571,3.1146057]
[1773245041530,7.64310059,85.58,85.552,3.1146057]
[1773245041949,7.64310059,85.58,85.55,0.2]
[1773245041950,10.10229886,85.58,85.55,0.2]
[1773245042123,7.64310059,85.57,85.55,0.2]
[1773245042726,7.64310059,85.58,85.551,14.80353978]
[1773245042926,3.2,85.601,85.552,3.1146057]
[1773245042927,7.64310059,85.59,85.552,3.1146057]
[1773245043253,11.68401743,85.587,85.552,3.1146057]
[1773245043743,11.6837444,85.589,85.552,3.1146057]
[1773245045234,11.6837444,85.589,85.554,3.1146057]
[1773245047754,11.6837444,85.589,85.556,3.1146057]
[1773245047955,11.68278891,85.596,85.561,3.1146057]
[1773245048133,2.44636306,85.63,85.591,3.1146057]
[1773245048334,2.44636306,85.629,85.591,1.73162991]
[1773245049439,3.2,85.631,85.6,7.64951308]
[1773245049752,22.43852567,85.63,85.601,11.68210651]
[1773245050055,3.11086241,85.629,85.601,11.68210651]
[1773245050255,3.11086241,85.619,85.581,3.1146057]
[1773245050832,3.11086241,85.609,85.574,14.80039811]
[1773245051150,3.11086241,85.609,85.575,3.1146057]
[1773245051455,3.11086241,85.609,85.574,11.68579241]
[1773245051456,3.11086241,85.616,85.581,3.1146057]
[1773245051650,7.64951308,85.61,85.581,3.1146057]
[1773245051848,7.64951308,85.61,85.582,14.79930575]
[1773245052047,7.64951308,85.61,85.583,3.1146057]
[1773245052437,40.87925436,85.618,85.583,3.1146057]
[1773245052637,3.11086241,85.617,85.583,3.1146057]
[1773245053241,3.11086241,85.609,85.578,11.68517702]
[1773245053745,7.64951308,85.6,85.572,14.80067123]
[1773245054341,3.11086241,85.607,85.573,3.1146057]
[1773245054648,7.64951308,85.6,85.573,3.1146057]
[1773245055259,3.11086241,85.589,85.553,3.1146057]
[1773245056365,3.11086241,85.589,85.555,3.1146057]
[1773245056366,11.68388091,85.588,85.555,3.1146057]
[1773245057363,3.2,85.598,85.571,3.1146057]
[1773245057763,3.2,85.598,85.556,1.16882509]
[1773245057764,3.11086241,85.599,85.56,7.64951308]
[1773245057962,3.11086241,85.589,85.553,3.1146057]
[1773245058161,3.11086241,85.578,85.55,0.2]
[1773245058363,3.11086241,85.578,85.533,1.16913939]
[1773245058364,3.11086241,85.559,85.522,3.1146057]
[1773245058547,7.64951308,85.53,85.504,11.69535306]
[1773245058747,10.76037549,85.53,85.5,3.3146057]
[1773245058970,7.64951308,85.53,85.507,11.69492557]
[1773245059176,7.64951308,85.53,85.501,3.1146057]
[1773245059677,2.48682655,85.54,85.5,0.2]
[1773245059846,7.64951308,85.52,85.5,0.2]
[1773245060045,7.64951308,85.53,85.501,3.297316]
[1773245060262,11.69194074,85.529,85.5,0.2]
[1773245060567,11.69194074,85.529,85.472,3.297316]
[1773245060568,2.48141779,85.509,85.472,3.297316]
[1773245060881,2.48141779,85.509,85.47,0.2]
[1773245060882,7.64951308,85.49,85.47,0.2]
[1773245061183,7.64951308,85.48,85.453,3.297316]
[1773245061349,7.64951308,85.47,85.443,3.297316]
[1773245061547,7.64951308,85.47,85.444,11.70357193]
[1773245061748,2.47965613,85.469,85.43,0.2]
[1773245061949,2.47965613,85.469,85.36,6.97503662]
[1773245061950,2.47965613,85.439,85.381,3.297316]
[1773245062163,11.70699727,85.419,85.383,3.297316]
[1773245062370,7.64951308,85.41,85.384,3.297316]
[1773245062555,7.64951308,85.39,85.361,3.297316]
[1773245062877,7.64951308,85.39,85.307,46.88939143]
[1773245062878,7.64951308,85.37,85.327,3.297316]
[1773245063189,7.64951308,85.37,85.31,1.37219552]
[1773245063190,2.4779147,85.39,85.331,3.297316]
[1773245063366,7.64951308,85.4,85.361,3.297316]
[1773245063570,7.64951308,85.37,85.34,3.297316]
[1773245063863,7.64951308,85.39,85.351,3.297316]
[1773245064248,7.64951308,85.4,85.361,3.297316]
[1773245065151,7.64951308,85.41,85.371,3.297316]
[1773245065358,11.70462437,85.437,85.391,3.297316]
[1773245065660,11.70462437,85.437,85.401,3.297316]
[1773245065855,11.70462437,85.437,85.372,1.17134423]
[1773245065856,7.64951308,85.43,85.39,7.64951308]
[1773245066055,2.47684167,85.429,85.391,3.297316]
[1773245066363,2.47684167,85.429,85.392,11.71069889]
[1773245066562,7.64951308,85.43,85.393,3.297316]
[1773245067075,7.64951308,85.43,85.392,11.71069889]
[1773245067076,19.35363293,85.44,85.401,3.297316]
[1773245067257,7.64951308,85.42,85.377,3.297316]
[1773245067465,7.64951308,85.43,85.381,3.297316]
[1773245067648,7.64951308,85.43,85.391,3.297316]
[1773245068365,19.35783643,85.41,85.38,3.297316]
[1773245068569,19.35783643,85.41,85.369,3.297316]
[1773245068767,2.4777866,85.419,85.371,3.297316]
[1773245068973,7.64951308,85.41,85.379,3.297316]
[1773245069456,19.35650412,85.42,85.381,3.297316]
[1773245069769,7.64951308,85.42,85.381,3.297316]
[1773245070079,11.70466052,85.437,85.401,3.297316]
[1773245070463,7.64951308,85.43,85.402,11.70932765]
[1773245070664,21.62415022,85.439,85.403,3.297316]
[1773245070977,21.62415022,85.439,85.402,44.27996277]
[1773245071170,21.62415022,85.439,85.411,3.297316]
[1773245071979,17.29932018,85.448,85.421,3.297316]
[1773245072356,17.29932018,85.448,85.411,3.297316]
[1773245072562,17.29932018,85.448,85.42,7.64951308]
[1773245072777,17.29932018,85.448,85.421,3.297316]
[1773245072973,7.64951308,85.43,85.4,11.7095262]
[1773245073273,7.64951308,85.43,85.4,15.0068422]
[1773245073658,7.64951308,85.42,85.382,3.297316]
[1773245074070,7.64951308,85.41,85.382,3.297316]
[1773245074458,7.64951308,85.42,85.384,3.297316]
[1773245074666,7.64951308,85.43,85.401,3.297316]
[1773245074866,18.16428606,85.455,85.411,3.297316]
[1773245075067,18.16428606,85.455,85.421,3.297316]
[1773245075671,7.64951308,85.45,85.421,3.297316]
[1773245075878,11.70220235,85.454,85.384,1.17117961]
[1773245075879,7.64951308,85.43,85.401,3.297316]
[1773245076067,2.47986817,85.437,85.401,3.297316]
[1773245076567,7.64951308,85.43,85.402,11.70932765]
[1773245077780,7.64951308,85.44,85.403,3.297316]
[1773245078276,3.2,85.448,85.411,3.297316]
[1773245078481,14.90308749,85.448,85.411,3.297316]
[1773245078670,14.90308749,85.448,85.412,11.70795672]
[1773245078872,3.2,85.448,85.412,44.27516453]
[1773245079259,3.2,85.448,85.413,3.297316]
[1773245079457,7.64951308,85.45,85.421,3.297316]
[1773245080390,18.16428606,85.46,85.421,3.297316]
[1773245080391,11.70151768,85.459,85.421,3.297316]
[1773245080697,7.64951308,85.45,85.422,40.97305143]
[1773245080885,19.35227856,85.45,85.422,11.70658612]
[1773245081068,7.64951308,85.44,85.422,11.70658612]
[1773245081388,10.13103625,85.44,85.412,11.70795672]
[1773245081582,19.35227856,85.45,85.413,3.04567767]
[1773245082684,19.35227856,85.45,85.414,11.70768258]
[1773245082878,7.64951308,85.43,85.391,3.04567767]
[1773245083188,40.95964084,85.45,85.391,3.04567767]
[1773245083189,7.64951308,85.42,85.392,3.04567767]
[1773245083787,7.64951308,85.42,85.383,3.04567767]
[1773245085184,11.70699727,85.419,85.384,11.71179612]
[1773245085386,7.64951308,85.41,85.385,3.04567767]
[1773245085590,11.70699727,85.419,85.385,3.04567767]
[1773245086095,14.18800528,85.429,85.391,3.04567767]
[1773245086979,7.64951308,85.44,85.401,3.04567767]
[1773245087174,2.48306735,85.447,85.411,3.04567767]
[1773245087380,39.99827751,85.46,85.421,3.04567767]
[1773245087581,39.99827751,85.46,85.403,1.17091905]
[1773245087582,7.64951308,85.44,85.403,3.04567767]
[1773245089398,18.16428606,85.46,85.431,3.04567767]
[1773245089592,18.16428606,85.46,85.44,7.64951308]
[1773245090069,1e-08,85.46,85.441,3.29706583]
[1773245090486,2.48427487,85.458,85.42,10.94657891]
[1773245090790,7.64951309,85.46,85.421,3.29706583]
[1773245090976,1e-08,85.46,85.431,3.29706583]
[1773245091177,1e-08,85.46,85.441,3.29706583]
[1773245092299,7.64951309,85.46,85.432,11.70521584]
[1773245092492,1e-08,85.46,85.432,11.70521584]
[1773245092673,1e-08,85.46,85.433,3.29706583]
[1773245092874,7.64951308,85.47,85.441,3.29706583]
[1773245093272,7.64951308,85.47,85.443,3.29706583]
[1773245093492,11.70014859,85.469,85.436,11.7045629]
[1773245093690,11.69909402,85.477,85.441,3.29706583]
[1773245094595,7.64951308,85.48,85.441,3.29706583]
[1773245094596,11.69877981,85.479,85.441,3.29706583]
[1773245095784,11.69741136,85.489,85.451,3.29706583]
[1773245096099,7.21724631,85.492,85.451,3.29706583]
[1773245096303,7.21724631,85.492,85.461,3.29706583]
[1773245097097,7.64951308,85.49,85.461,3.29706583]
[1773245097703,11.69627751,85.498,85.463,3.29706583]
[1773245098086,7.64951308,85.5,85.463,3.29706583]
[1773245098298,19.34555194,85.5,85.463,3.29706583]
[1773245099694,19.34555194,85.5,85.464,11.70083309]
[1773245099998,19.34555194,85.5,85.465,3.29706583]
[1773245100398,2.48649039,85.489,85.455,3.29706583]
[1773245100588,7.64951308,85.49,85.455,3.29706583]
[1773245101398,19.34555194,85.5,85.461,3.29706583]
[1773245101789,7.64951308,85.49,85.461,3.29706583]
[1773245102514,7.64951308,85.47,85.442,3.29706583]
[1773245102797,7.64951308,85.48,85.442,3.29706583]
[1773245103001,3.2,85.501,85.461,3.29706583]
[1773245103205,7.74951308,85.51,85.461,3.29706583]
[1773245103405,7.64951308,85.49,85.462,3.29706583]
[1773245103588,7.64951308,85.49,85.45,7.64951308]
[1773245103589,7.64951308,85.49,85.452,3.29706583]
[1773245104388,2.48730738,85.499,85.454,3.29706583]
[1773245104807,19.34541951,85.5,85.461,3.29706583]
[1773245105005,11.6952144,85.506,85.471,3.29706583]
[1773245105205,7.64951308,85.53,85.482,3.29706583]
[1773245105513,7.64951308,85.53,85.462,1.17011069]
[1773245105514,7.19591501,85.537,85.511,3.29706583]
[1773245105910,11.68825013,85.557,85.521,3.29706583]
[1773245106313,7.65677903,85.56,85.522,11.69289773]
[1773245106698,11.68784113,85.559,85.522,40.92514206]
[1773245106997,11.68647524,85.569,85.53,7.65677903]
[1773245107511,11.6852462,85.578,85.54,7.65677903]
[1773245107711,7.65677903,85.59,85.55,7.65677903]
[1773245108228,7.65677903,85.59,85.551,3.29706583]
[1773245108418,11.68237946,85.599,85.561,3.29706583]
[1773245108592,7.65677903,85.59,85.561,3.29706583]
[1773245109418,10.88557494,85.58,85.548,3.29706583]
[1773245109712,10.88557494,85.58,85.522,3.69383402]
[1773245109713,7.65677903,85.59,85.551,3.29706583]
[1773245110012,11.68237946,85.599,85.561,3.29706583]
[1773245110704,7.65677903,85.6,85.563,3.29706583]
[1773245110889,7.65677903,85.6,85.562,40.90600967]
[1773245110890,7.65677903,85.6,85.571,3.29706583]
[1773245111094,7.65677903,85.59,85.562,11.68743133]
[1773245111320,7.65677903,85.61,85.571,3.29706583]
[1773245111498,19.33766911,85.61,85.571,3.29706583]
[1773245112304,7.65677903,85.6,85.571,3.29706583]
[1773245112508,7.65677903,85.59,85.563,3.29706583]
[1773245112814,3.22879591,85.589,85.553,11.68866083]
[1773245113118,7.65677903,85.59,85.554,3.29706583]
[1773245113298,3.22879591,85.589,85.554,3.29706583]
[1773245113507,7.65677903,85.6,85.561,3.29706583]
[1773245113798,11.68237946,85.599,85.561,3.29706583]
[1773245114109,11.68237946,85.599,85.553,40.9103129]
[1773245114110,7.65677903,85.59,85.553,40.9103129]
[1773245114315,7.65677903,85.59,85.554,3.29706583]
[1773245114720,11.6837444,85.589,85.556,3.29706583]
[1773245114924,7.65677903,85.6,85.561,3.29706583]
[1773245115104,10.88557494,85.61,85.571,3.29706583]
[1773245115302,7.75677903,85.62,85.581,3.29706583]
[1773245115499,7.65677903,85.61,85.581,3.29706583]
[1773245116120,0.1,85.62,85.581,3.29706583]
[1773245116314,7.75677903,85.62,85.581,3.29706583]
[1773245116517,10.88557494,85.62,85.585,3.29706583]
[1773245116721,7.65677903,85.62,85.591,3.29706583]
[1773245116898,7.65677903,85.61,85.586,11.68415395]
[1773245117104,3.22879591,85.619,85.586,11.68415395]
[1773245117418,11.67828656,85.629,85.591,3.29706583]
[1773245117605,7.65677903,85.63,85.591,3.29706583]
[1773245117808,14.90708247,85.629,85.591,3.29706583]
[1773245118197,7.65677903,85.63,85.591,3.29706583]
[1773245118424,3.22879591,85.629,85.591,3.29706583]
[1773245118826,7.65677903,85.62,85.592,11.68333489]
[1773245119325,11.67828656,85.629,85.593,3.29706583]
[1773245119912,11.67828656,85.629,85.566,1.16868849]
[1773245119913,7.65677903,85.61,85.581,11.68476057]
[1773245120222,7.65677903,85.61,85.575,3.19466245]
[1773245120223,3.13465394,85.609,85.576,11.68545401]
[1773245120820,11.68115129,85.608,85.576,11.68545401]
[1773245121715,11.68101484,85.609,85.577,3.19466245]
[1773245122220,3.13465394,85.589,85.543,3.19466245]
[1773245122434,3.13465394,85.589,85.503,46.78154704]
[1773245122435,7.65677903,85.57,85.534,11.69120172]
[1773245122606,7.65677903,85.57,85.535,3.19466245]
[1773245122809,11.68647524,85.569,85.537,3.19466245]
[1773245123806,32.34751697,85.579,85.541,3.19466245]
[1773245123807,3.13465394,85.579,85.541,3.19466245]
[1773245124006,7.65677903,85.58,85.541,3.19466245]
[1773245124606,7.65677903,85.58,85.55,7.65677903]
[1773245124805,7.65677903,85.59,85.551,3.19466245]
[1773245125217,11.6837444,85.589,85.553,3.19466245]
[1773245125421,11.68282488,85.596,85.561,3.19466245]
[1773245125617,7.65677903,85.59,85.561,3.19466245]
[1773245126611,11.68282488,85.596,85.541,3.19466245]